Cogmind - Beta 10.2 @@@ ROGUE MODE // 2022.03.07 @ 00:55:13 Player: woegarden Result: Self-destructed Performance ------------- Evolutions (1) 500 Regions Visited (3) 600 Robots Destroyed (7) 35 Value Destroyed (71) 71 Prototype IDs (1) 20 Alien Tech Used (0) 0 Bonus (0) 0 TOTAL SCORE: 1226 Bonus ------- None Cogmind --------- Core Integrity 360/400 Matter 11/300 Energy 280/280 System Corruption 0% Temperature Cool (0) Movement Rolling (95) Location -9/Mines Parts ------- > --- POWER (1) -------- Heavy Ion Engine > --- PROPULSION (4) --- Compact Wheel Compact Wheel Armored Wheel Armored Wheel > --- UTILITY (2) ------ Large Storage Unit Improved Signal Interpreter > --- WEAPON (2) ------- (None) > --- INVENTORY (10) --- Ion Engine Light Ion Engine Armored Wheel Armored Wheel Medium Storage Unit Medium Storage Unit Improved Signal Interpreter Light Armor Plating Rocket Launcher Rocket Launcher Peak State ------------ > --- POWER ------------ Heavy Ion Engine > --- PROPULSION ------- Compact Wheel Compact Wheel Armored Wheel Armored Wheel > --- UTILITY ---------- Large Storage Unit Improved Signal Interpreter > --- WEAPON ----------- Rocket Launcher Rocket Launcher > --- INVENTORY -------- Ion Engine Light Ion Engine Armored Wheel Armored Wheel Medium Storage Unit Medium Storage Unit Light Armor Plating Rocket Launcher Rocket Launcher [Rating: 17] Favorites ----------- Power Ion Engine Engine Ion Engine Propulsion Aluminum Leg Treads Light Treads Leg Aluminum Leg Wheel Armored Wheel Utility Sensor Array Device Sensor Array Storage Small Storage Unit Processor Improved Signal Interpreter Weapon Rocket Launcher Energy Gun EM Pulse Gun Ballistic Gun Light Assault Rifle Launcher Rocket Launcher Build | -11 -10 -9 -9 ------- Run | Scr Mat Mat Min Slots Evolved 2 | . . 2 . Power . | . . . . Propulsion 2 | . . 2 . Utility . | . . . . Weapon . | . . . . Parts Attached 22 | . 17 5 . Power 2 | . 1 1 . Engine 2 | . 1 1 . Core . | . . . . Reactor . | . . . . Propulsion 8 | . 6 2 . Treads 2 | . 2 . . Leg 2 | . 2 . . Wheel 4 | . 2 2 . Hover . | . . . . Flight . | . . . . Utility 8 | . 6 2 . Device 1 | . 1 . . Storage 6 | . 5 1 . Processor 1 | . . 1 . Hackware . | . . . . Protection . | . . . . Artifact . | . . . . Weapon 4 | . 4 . . Energy Gun 2 | . 2 . . Energy Cannon . | . . . . Ballistic Gun . | . . . . Ballistic Cannon . | . . . . Launcher 2 | . 2 . . Special Weapon . | . . . . Impact Weapon . | . . . . Slashing Weapon . | . . . . Piercing Weapon . | . . . . Special Melee Weapon . | . . . . Unidentified Prototypes 1 | . . 1 . Parts Lost 4 | . 2 2 . Power . | . . . . Propulsion . | . . . . Utility . | . . . . Weapon 4 | . 2 2 . Highest Loss Streak 2 | . 2 2 . Average Slot Usage (%) 95 | . 96 96 77 Engine 13 | . 14 11 11 Leg 14 | . 21 . . Wheel 17 | . 4 44 44 Device 8 | . 12 . . Storage 14 | . 14 16 11 Processor 1 | . . 5 11 Energy Gun 7 | . 11 . . Ballistic Gun 6 | . 9 . . Launcher 8 | . 5 18 . Naked Turns . | . . . . Heaviest Build 40 | 12 27 40 24 Greatest Support 56 | 20 40 56 56 Greatest Overweight (x) 2 | . 2 . . Average Overweight (x) . | . . . . Largest Inventory Capacity 14 | . 12 14 10 Average Capacity 8 | . 6 12 10 Most Carried 10 | . 10 10 10 Average Carried 6 | . 6 8 10 Final Capacity 10 | 6 10 10 10 Final Carried 10 | 6 10 10 10 Class Distribution -------------------- 100% | Mutant Dominant Class ---------------- Mutant | -10/Materials Mutant | -9/Materials Mutant | -9/Mines Resources | -11 -10 -9 -9 ----------- Run | Scr Mat Mat Min Matter Collected 218 | 200 18 . . Remotely . | . . . . Salvage Created 95 | . 95 . . Parts 11 | . 11 . . Haulers Intercepted . | . . . . Recyclers Shooed . | . . . . Parts Field Recycled . | . . . . Retrieved Matter . | . . . . Parts Self-Destructed . | . . . . Prevented . | . . . . Kills | -11 -10 -9 -9 ------- Run | Scr Mat Mat Min Combat Hostiles Destroyed 6 | . 6 . . Guns 6 | . 6 . . Classes Destroyed 2 | . 2 . . Worker 1 | . 1 . . Swarmer 6 | . 6 . . Best Kill Streak 4 | . 4 . . Combat Bots Only 3 | . 3 . . Max Kills in Single Turn 1 | . 1 . . Gunslinging . | . . . . Exploded . | . . . . Melee . | . . . . Uniques/NPCs Destroyed . | . . . . Combat | -11 -10 -9 -9 -------- Run | Scr Mat Mat Min Damage Taken 631 | . 290 341 . Core 76 | . 36 40 . Absorbed by Shields . | . . . . Core Remaining (%) 92 | 100 85 . . Volleys Fired 19 | . 15 4 . Largest 2 | . 2 2 . Hottest 66 | . 60 66 . Shots Fired 37 | . 29 8 . Gun 29 | . 29 . . Cannon . | . . . . Launcher 8 | . . 8 . Special . | . . . . Kinetic 14 | . 14 . . Thermal 7 | . 7 . . Explosive 8 | . . 8 . Electromagnetic 8 | . 8 . . Robot Hit Streak 6 | . 6 4 . Robot Miss Streak 3 | . 3 1 . Penetration Max . | . . . . Secondary Targets . | . . . . Shots Hit Robots 23 | . 17 6 . Core Hits 10 | . 7 3 . Critical Hits . | . . . . Critical Kills . | . . . . Critical Parts Destroyed . | . . . . Melee Attacks . | . . . . Impact . | . . . . Slashing . | . . . . Piercing . | . . . . Sneak Attacks . | . . . . Combat Hostiles . | . . . . Follow-up Attacks . | . . . . Damage Inflicted 246 | . 158 88 . Guns 157 | . 157 . . Cannons . | . . . . Explosions 88 | . . 88 . Melee . | . . . . Ramming 1 | . 1 . . Kinetic 46 | . 46 . . Thermal 55 | . 55 . . Explosive 88 | . . 88 . Electromagnetic 56 | . 56 . . Impact . | . . . . Slashing . | . . . . Piercing . | . . . . Highest Corruption . | . . . . Average Corruption . | . . . . Corruption Purged . | . . . . Overload Shots . | . . . . Overflow Damage . | . . . . Projectiles . | . . . . Explosions . | . . . . Melee . | . . . . Knockbacks . | . . . . Impact . | . . . . Kinetic . | . . . . Secondary . | . . . . Self-Inflicted Damage 73 | . . 73 . Shots 2 | . . 2 . Rammed 2 | . 2 . . Targets Rammed 2 | . 2 . . Kicked . | . . . . Crushed . | . . . . Highest Temperature 60 | . 60 27 . Average Temperature 23 | . 24 18 . Received Heat Transfer 81 | . . 81 . Siege Activations . | . . . . Robots Corrupted . | . . . . Combat Hostiles . | . . . . Parts Fried . | . . . . Impact Corruptions . | . . . . Robots Melted . | . . . . Combat Hostiles . | . . . . Parts Melted . | . . . . Heat Transferred 125 | . 125 . . Parts Sabotaged . | . . . . Parts Stolen . | . . . . Parts Stripped . | . . . . Power Chain Reactions . | . . . . Missiles Intercepted . | . . . . Alert | -11 -10 -9 -9 ------- Run | Scr Mat Mat Min Peak Influence 185 | . 185 45 9 Initial 9 | . . . 9 Average 47 | . 62 14 9 Maximum Alert Level . | . . . . Low Security (%) 100 | . 100 100 100 Level 1 . | . . . . Level 2 . | . . . . Level 3 . | . . . . Level 4 . | . . . . Level 5 . | . . . . High Security . | . . . . Max Security . | . . . . Squads Dispatched 2 | . 1 1 . Investigation 1 | . 1 . . Extermination . | . . . . Reinforcement 1 | . . 1 . Assault . | . . . . Garrison . | . . . . Intercept . | . . . . Construction Impeded . | . . . . Haulers Reinforced . | . . . . Stealth | -11 -10 -9 -9 --------- Run | Scr Mat Mat Min Distress Signals 1 | . 1 . . Communications Jammed . | . . . . Distress Signals . | . . . . Times Spotted 15 | . 10 3 2 Peak Tracking Total 4 | . 4 2 3 Tactical Retreats 3 | . 3 . . Traps | -11 -10 -9 -9 ------- Run | Scr Mat Mat Min Traps Triggered 3 | . 2 1 . Indirectly . | . . . . Trap Hack Attempts . | . . . . Triggered . | . . . . Disarmed . | . . . . Reprogrammed . | . . . . Reused . | . . . . Traps Extracted . | . . . . Installed . | . . . . Triggered . | . . . . Machines | -11 -10 -9 -9 ---------- Run | Scr Mat Mat Min Machines Disabled 1 | . . 1 . Max in Single Turn 1 | . . 1 . Machines Sabotaged . | . . . . Garrisons Compromised . | . . . . Overloaded Fab Kills . | . . . . Fab Network Shutdowns . | . . . . Hacking | -11 -10 -9 -9 --------- Run | Scr Mat Mat Min Machines Accessed . | . . . . Terminals . | . . . . Fabricators . | . . . . Repair Stations . | . . . . Recycling Units . | . . . . Scanalyzers . | . . . . Garrison Access . | . . . . Total Hacks . | . . . . Successful . | . . . . Failed . | . . . . Catastrophic . | . . . . Database Lockouts . | . . . . Manual . | . . . . Terminals . | . . . . Fabricators . | . . . . Repair Stations . | . . . . Recycling Units . | . . . . Scanalyzers . | . . . . Garrison Access . | . . . . Terminal Hacks . | . . . . Fabricator Hacks . | . . . . Repair Station Hacks . | . . . . Recycling Unit Hacks . | . . . . Scanalyzer . | . . . . Garrison Access Hacks . | . . . . Unauthorized Hacks . | . . . . Terminals . | . . . . Fabricators . | . . . . Repair Stations . | . . . . Recycling Units . | . . . . Scanalyzers . | . . . . Garrison Access . | . . . . Data Cores Recovered . | . . . . Used . | . . . . Hacking Detections . | . . . . Full Trace Events . | . . . . Feedback Events . | . . . . Feedback Blocked . | . . . . Robot Schematics Acquired . | . . . . Robots Built . | . . . . Matter . | . . . . Time . | . . . . Total Robot Build Rating . | . . . . Part Schematics Acquired . | . . . . Parts Built . | . . . . Matter . | . . . . Time . | . . . . Total Part Build Rating . | . . . . Parts Repaired . | . . . . Time . | . . . . Parts Recycled . | . . . . Recycled Matter . | . . . . Retrieved Matter . | . . . . Retrieved Components . | . . . . Parts Scanalyzed . | . . . . Part Schematics Acquired . | . . . . Parts Damaged . | . . . . Bothacking | -11 -10 -9 -9 ------------ Run | Scr Mat Mat Min Used RIF Installer . | . . . . Robots Hacked . | . . . . Non-combat . | . . . . Combat . | . . . . Robot Hacks Applied . | . . . . Relay Couplers Released . | . . . . Robots Rewired . | . . . . Allies Hacked . | . . . . Hacks Repelled . | . . . . Allies | -11 -10 -9 -9 -------- Run | Scr Mat Mat Min Total Allies 3 | . . . 3 Largest Group 3 | . . . 3 Highest-Rated Group 40 | . . . 40 Highest-Rated Ally 16 | . . . 16 Total Orders . | . . . . Ally Attacks . | . . . . Total Damage . | . . . . Kills . | . . . . Allies Corrupted . | . . . . Allies Melted . | . . . . Intel | -11 -10 -9 -9 ------- Run | Scr Mat Mat Min Robot Analysis Total . | . . . . Derelict Logs Recovered . | . . . . Drone Launches . | . . . . Drone Recoveries . | . . . . Exploration | -11 -10 -9 -9 ------------- Run | Scr Mat Mat Min Turns Passed 723 | . 496 194 33 Spaces Moved 572 | 1 354 183 34 Core 1 | . 1 . . Treads 6 | . 6 . . Legs 276 | 1 275 . . Wheels 289 | . 72 183 34 Hover . | . . . . Flight . | . . . . Fastest Speed 90 | 120 90 95 95 Average Speed 107 | 120 115 95 95 Slowest Speed 160 | 120 160 95 95 Overloaded Moves . | . . . . Propulsion Burnouts . | . . . . Robots Hopped . | . . . . Cave-ins Triggered . | . . . . Exploration Rate (%) 19 | 1 44 25 6 Regions Visited 3 Branch Regions 1 Pre-discovered Areas . | . . . . Known Exits Taken 1 | . . 1 . Unknown Exits Taken 2 | 1 1 . . Scrap Searched . | . . . . Spaces Dug . | . . . . Terrain Destroyed 62 | . . 62 . Melee . | . . . . Projectile . | . . . . AOE 62 | . . 62 . Terrain Rammed . | . . . . Walls Destroyed . | . . . . Machines Disabled . | . . . . Actions | -11 -10 -9 -9 --------- Run | Scr Mat Mat Min Total 640 | . 412 194 34 Wait 7 | . 7 . . Move 569 | . 353 182 34 Hop . | . . . . Pick Up 11 | . 8 3 . Fast Attach 8 | . 8 . . Attach 5 | . 2 3 . Detach . | . . . . Swap 9 | . 7 2 . Drop 10 | . 10 . . Fire 19 | . 15 4 . Melee . | . . . . Ram . | . . . . Kick 2 | . 2 . . Crush . | . . . . Escape Stasis . | . . . . Rewire . | . . . . Trap . | . . . . Miscellaneous . | . . . . Route ------- -11/Scrapyard -10/Materials -9/Materials -9/Mines History --------- Turn | Location | Event 1 | -11/Scrapyard | Discovered new exit (range 0) 1 | -11/Scrapyard | Entered Materials 312 | -10/Materials | Build established: Mutant 493 | -10/Materials | Discovered new exit (range 5) 497 | -10/Materials | Entered another Materials area 497 | -9/Materials | Evolved 2 slots: Propulsion x2 679 | -9/Materials | Discovered new exit (range 11) 690 | -9/Materials | Identified exit to Mines 691 | -9/Materials | Entered Mines 708 | -9/Mines | Assisted by bots powering up and referring to "LRC-V3" 724 | -9/Mines | Self-destructed Last Messages --------------- 00529_ Door malfunctions. 00565_ O-16 Technician: "IFF HANDSHAKE FAILED. SECURING TERMINAL." 00568_ ALERT: Hostiles spotted, dispatching reinforcements to Terminal M001. 00578_ Acquired Prototype Engine. 00579_ Identified Hvy. Ion Engine. 00592_ T-07 Excavator is excavating. 00598_ Acquired Imp. Signal Interpreter. 00634_ Hadron Collector disabled. 00643_ The unstable cave ceiling collapses. 00651_ T-07 Excavator is excavating. 00663_ The unstable cave ceiling collapses. 00663_ Rocket Launcher destroyed. 00679_ EXIT=FOUND 00690_ EXIT=IDENTIFIED: MINES LOCATION=MINES GOAL=ESCAPE 00708_ Trooper 2a: "Hello LRC-V3. What is your command?" 00708_ Mercenary 2a: "Hello LRC-V3. What is your command?" 00708_ Trooper 2b: "Hello LRC-V3. What is your command?" Map ----- +----------------------------------------------------+ | | | | | | | | | | | | | | | | | | | | | | | | | | | | | | | | | | | | | | | | | ????????????????????????????????????????????????? | | ?????????????????????????????????????#####??????? | | ?????????????????????????########????# #??????? | | ?????????????????????????# #????# #??????? | | ?????????????""" ###### #????# ###????? | | ?????????????""" k sk @ #????# ##???? | | ?????????? s ###### g###### #???? | | ?????????????????????????# g g #???? | | ?????????????????????????# ###### ##???? | | ?????????????????????????# #????## ##????? | | ?????????????????????????########?????#####?????? | | ????????????????????????????????????????????????? | | ????????????????????????????????????????????????? | | ????????????????????????????????????????????????? | | ????????????????????????????????????????????????? | | ????????????????????????????????????????????????? | | ????????????????????????????????????????????????? | | ????????????????????????????????????????????????? | | ????????????????????????????????????????????????? | | ????????????????????????????????????????????????? | | ????????????????????????????????????????????????? | | ????????????????????????????????????????????????? | | ????????????????????????????????????????????????? | | ????????????????????????????????????????????????? | | ????????????????????????????????????????????????? | | ????????????????????????????????????????????????? | | ????????????????????????????????????????????????? | | ????????????????????????????????????????????????? | | ????????????????????????????????????????????????? | | ????????????????????????????????????????????????? | +----------------------------------------------------+ Best States ------------- Heat Dissipation 28 Energy Generation 14 Energy Capacity 280 Matter Stores 300 Matter Capacity 300 Sight Range 16 Robot Scan Range 10 Terrain Scan Density 10 Evasion (%) 42 Recoil Reduction 2 Item Schematics ----------------- None Robot Schematics ------------------ None Fabricated ------------ Nothing Alien Tech Used ----------------- None Achievements -------------- None Challenges ------------ None Game ------ Seed AngularAerolevTriangulator Manual? 0 Play Time 00:09:40 Cumulative 71.5 hours Start 2022.03.07 @ 00:43:32 End 2022.03.07 @ 00:55:13 Sessions 1 Manual Loads 0 Difficulty Rogue Special Mode None Game No. 98 Rogue 52 Adventurer 45 Explorer 1 Win Type - Total 0 Types 0/0/0/0/0/0/0/0/0 Lore% 25 Gallery% 46 Achievement% 31 Wizard Run 0 Options --------- ASCII 0 Keyboard 0 Movement Mouse Keybinds 0 Fullscreen 2 Font 16/Proggy Map View 76x50 Tactical HUD 1 Map Filters NONE Filters LOW_CONTRAST(13,24,33)|BRIGHTNESS(90)|SATURATION(87) Steam 1 RUN: 84ad2480-4749-414d-a0ea-0fd2bc57850f